[Event "Bergen Grand Prix 2019"]
[Site "Bergen"]
[Date "2019.11.15"]
[Round "1.2"]
[White "Omtvedt, Aleksander"]
[Black "Fossan, Petter"]
[Result "0-1"]
[ECO "A01"]
[WhiteElo "1900"]
[BlackElo "2315"]
[Annotator "NA"]
[PlyCount "46"]
[EventDate "2019.11.15"]
[EventType "swiss"]
[EventCountry "NOR"]
[SourceTitle "playchess.com"]
[Source "ChessBase"]
[SourceQuality "1"]
[TimeControl "40/5400:1800"]

1. b3 {[%emt 0:00:24]} e5 {[%emt 0:01:40]} 2. Bb2 {[%emt 0:00:15]} d6 {[%emt 0:02:58]} 3. e3 {[%emt 0:00:10]} g6 {[%emt 0:00:38]} 4. d4 {[%emt 0:01:50]} Nd7 {[%emt 0:00:25]} 5. dxe5 {[%emt 0:04:59]} dxe5 {[%emt 0:00:07]} 6. Nf3 {[%emt 0:00:09]} Bg7 {[%emt 0:00:07]} 7. Be2 {[%emt 0:01:04]} Ne7 {[%emt 0:01:02]} 8. c4 {[%emt 0:01:45]} O-O {[%emt 0:00:47]} 9. Qc2 {[%emt 0:00:13]} c6 {[%emt 0:07:00]} 10. Nbd2 {[%emt 0:02:31]} Qc7 {[%emt 0:01:18]} 11. e4 {[%emt 0:03:01]} Nc5 {[%emt 0:01:26]} 12. O-O {[%emt 0:06:46]} Ne6 {[%emt 0:00:44]} 13. Rfe1 {[%emt 0:01:24]} f5 {[%emt 0:04:33]} 14. c5 {[%emt 0:02:38]} Kh8 {[%emt 0:03:44]} 15. exf5 {[%emt 0:05:33]} gxf5 {[%emt 0:00:44]} 16. Nc4 {[%emt 0:08:12]} Ng6 {[%emt 0:01:30]} 17. b4 {[%emt 0:01:45]} e4 {[%emt 0:01:47]} 18. Bxg7+ {[%emt 0:04:45]} Qxg7 {[%emt 0:00:17]} 19. Nfd2 {[%emt 0:00:07]} Nd4 {[%emt 0:03:28]} 20. Qb2 {[%emt 0:00:56]} Nf4 {[%emt 0:01:08]} 21. Bf1 {[%emt 0:00:32]} Nxg2 {[%emt 0:03:25]} 22. Kh1 {[%emt 0:01:33]} Nxe1 {[%emt 0:05:17]} 23. Rxe1 {[%emt 0:00:15]} Rg8 {[%emt 0:01:04]} 0-1

[Event "Bergen Grand Prix 2019"]
[Site "Bergen"]
[Date "2019.11.15"]
[Round "1.6"]
[White "Hjornevik, Knut J"]
[Black "Holleland, Sigve"]
[Result "1-0"]
[ECO "A30"]
[WhiteElo "1807"]
[BlackElo "2098"]
[Annotator "NA RC"]
[PlyCount "139"]
[EventDate "2019.11.15"]
[EventType "swiss"]
[EventCountry "NOR"]
[SourceTitle "playchess.com"]
[Source "ChessBase"]
[SourceQuality "1"]
[TimeControl "40/5400:1800"]

1. Nf3 {[%emt 0:00:05]} Nf6 {[%emt 0:00:17]} 2. d4 {[%emt 0:01:03]} e6 {[%emt 0:00:15]} 3. g3 {[%emt 0:00:17]} b6 {[%emt 0:02:09]} 4. Bg2 {[%emt 0:00:07]} Bb7 {[%emt 0:00:04]} 5. O-O {[%emt 0:01:05]} c5 {[%emt 0:00:19]} 6. c4 {[%emt 0:05:30]} cxd4 {[%emt 0:01:39]} 7. Nxd4 {[%emt 0:00:06]} Bxg2 {[%emt 0:00:09]} 8. Kxg2 {[%emt 0:00:04]} Qc7 {[%emt 0:06:06]} 9. b3 {[%emt 0:01:23] A30: Symmetrical English: Double Fianchetto and Hedgehog} a6 {[%emt 0:01:21]} 10. Bb2 {[%emt 0:04:45]} (10. Kg1 Be7 11. Bb2 O-O 12. Nc3 Qb7 13. Qd3 d6 14. Qf3 Qxf3 15. Nxf3 Rc8 16. Rfd1 Nbd7 17. Nd4 Rc7 18. f3 Rac8 19. Rac1 g6 20. e3 d5 21. cxd5 Nxd5 22. Nxd5 exd5 23. Rxc7 Rxc7 24. Kf2 Bf6 25. Ke2 h5 26. h3 {½-½ (26) Timoshenko,G (2518)-Miroshnichenko,E (2619) Mamaia 2013}) 10... Bc5 {[%emt 0:02:11]} 11. Qd3 {[%emt 0:02:10]} Nc6 {[%emt 0:02:05]} 12. Nxc6 $146 {[%emt 0:05:13]} ({Predecessor:} 12. Qf3 Ke7 13. Rd1 Nxd4 14. Bxd4 Bxd4 15. Rxd4 Qc6 16. Nc3 Rac8 {½-½ (25) Pfadenhauer,J (2067)-Woerl,R (2047) Fuerth 2015}) 12... Qxc6+ {[%emt 0:00:51]} 13. Qf3 {[%emt 0:00:34]} Qxf3+ {[%emt 0:07:35]} 14. Kxf3 {[%emt 0:00:09]} b5 {[%emt 0:01:09]} 15. Rc1 {[%emt 0:02:46]} d6 {[%emt 0:00:56]} 16. e3 {[%emt 0:01:31]} Ke7 {[%emt 0:01:53]} 17. Na3 {[%emt 0:03:10]} Rab8 {[%emt 0:01:51]} 18. cxb5 {[%emt 0:07:25]} axb5 {[%emt 0:00:18]} 19. Nc2 {[%emt 0:00:14]} e5 {[%emt 0:01:55]} 20. b4 {[%emt 0:03:08]} Bb6 {[%emt 0:00:06]} 21. e4 {[%emt 0:01:52]} g5 {[%emt 0:02:16]} 22. Re1 {[%emt 0:05:26]} Rhc8 {[%emt 0:03:57]} 23. Na3 {[%emt 0:04:24]} Ra8 {[%emt 0:03:52]} 24. Rac1 {[%emt 0:00:39]} Rxc1 {[%emt 0:00:22]} 25. Bxc1 {[%emt 0:00:17]} Ra4 {[%emt 0:03:14]} 26. Re2 {[%emt 0:10:12]} g4+ {[%emt 0:01:01]} 27. Kg2 {[%emt 0:00:04]} Rxb4 {[%emt 0:00:19]} 28. f3 {[%emt 0:00:13]} gxf3+ {[%emt 0:02:05]} 29. Kxf3 {[%emt 0:00:06]} Bc5 {[%emt 0:02:36]} 30. Rb2 {[%emt 0:04:16]} Rxb2 {[%emt 0:02:29]} 31. Bxb2 {[%emt 0:00:05]} Bxa3 {[%emt 0:00:25]} 32. Bxa3 {[%emt 0:00:06]} Ke6 {[%emt 0:00:08]} 33. Bb4 {[%emt 0:01:18]} d5 {[%emt 0:01:01]} 34. exd5+ {[%emt 0:00:08]} Nxd5 {[%emt 0:00:39]} 35. Bd2 {[%emt 0:00:35]} e4+ {[%emt 0:00:29]} 36. Kxe4 {[%emt 0:00:34]} Nb6 {[%emt 0:01:47]} 37. Kd4 {[%emt 0:04:23]} Na4 {[%emt 0:00:23]} 38. Bf4 {[%emt 0:00:40]} f6 {[%emt 0:01:17]} 39. h4 {[%emt 0:01:50]} h5 {[%emt 0:02:34]} 40. a3 {[%emt 0:01:24]} Kf5 {[%emt 0:02:59]} 41. Kd5 {[%emt 0:33:24]} Nc3+ {[%emt 0:30:23]} 42. Kc5 {[%emt 0:00:16]} Ke4 {[%emt 0:02:10]} 43. Bb8 {[%emt 0:00:00]} Kd3 $2 {[%emt 0:00:00] [#]} (43... Kf3 $11 {and Black stays safe.}) 44. Bc7 $11 {[%emt 0:00:00]} (44. g4 $1 $18 {[%cal Rg4h5][%mdl 512]} Ke4 (44... hxg4 45. h5) 45. gxh5) 44... Ke4 {[%emt 0:00:00]} 45. Bd6 {[%emt 0:00:00]} Kd3 {[%emt 0:00:00]} 46. Kb4 {[%emt 0:00:00]} Kd4 {[%emt 0:00:00]} 47. Bc5+ {[%emt 0:00:00]} Kd3 {[%emt 0:00:00]} 48. Ba7 {[%emt 0:00:00]} Nb1 {[%emt 0:00:00]} 49. g4 {[%emt 0:00:00]} hxg4 {[%emt 0:00:00]} 50. h5 {[%emt 0:00:00]} Nc3 {[%emt 0:00:00]} 51. h6 {[%emt 0:00:00]} Nd5+ {[%emt 0:00:00]} 52. Kxb5 {[%emt 0:00:00]} Ne7 {[%emt 0:00:00]} 53. Bc5 {[%emt 0:00:00]} Ng6 {[%emt 0:00:00]} 54. a4 {[%emt 0:00:00]} f5 {[%emt 0:00:00]} 55. a5 {[%emt 0:00:00]} f4 {[%emt 0:00:00]} 56. a6 {[%emt 0:00:00]} f3 {[%emt 0:00:00]} 57. Bf2 {[%emt 0:00:00]} Ke2 {[%emt 0:00:00]} 58. Bg3 {[%emt 0:00:00]} f2 {[%emt 0:00:00]} 59. Bxf2 {[%emt 0:00:00]} Kxf2 {[%emt 0:00:00]} 60. a7 {[%emt 0:00:00]} g3 {[%emt 0:00:00]} 61. a8=Q {[%emt 0:00:00]} g2 {[%emt 0:00:00]} 62. Qa7+ {[%emt 0:00:00]} Ke2 {[%emt 0:00:00]} 63. Qg1 {[%emt 0:00:00]} Kf3 {[%emt 0:00:00]} 64. h7 {[%emt 0:00:00]} Kg3 {[%emt 0:00:00]} 65. Kc5 {[%emt 0:00:00]} Kf3 {[%emt 0:00:00]} 66. Kd6 {[%emt 0:00:00]} Kg3 {[%emt 0:00:00]} 67. Qe3+ {[%emt 0:00:00]} Kg4 {[%emt 0:00:00]} 68. Qf2 {[%emt 0:00:00]} Kh3 {[%emt 0:00:00]} 69. Qf3+ {[%emt 0:00:00]} Kh2 {[%emt 0:00:00]} 70. Qh5+ {[%emt 0:00:00]} 1-0

[Event "Bergen Grand Prix 2019"]
[Site "Bergen"]
[Date "2019.11.15"]
[Round "1.7"]
[White "Sorensen, Simen"]
[Black "Agustsson, Hafsteinn"]
[Result "1-0"]
[ECO "D37"]
[WhiteElo "2004"]
[BlackElo "1801"]
[Annotator "NA RC"]
[PlyCount "69"]
[EventDate "2019.11.15"]
[EventType "swiss"]
[EventCountry "NOR"]
[SourceTitle "playchess.com"]
[Source "ChessBase"]
[SourceQuality "1"]
[TimeControl "40/5400:1800"]

1. d4 {[%emt 0:00:03]} d5 {[%emt 0:00:08]} 2. Nf3 {[%emt 0:00:11]} e6 {[%emt 0:00:21]} 3. c4 {[%emt 0:00:18]} Be7 {[%emt 0:00:29]} 4. Nc3 {[%emt 0:00:20]} Nf6 {[%emt 0:00:35]} 5. Bf4 {[%emt 0:00:37]} O-O {[%emt 0:00:31]} 6. e3 {[%emt 0:00:39]} c5 {[%emt 0:03:44]} 7. dxc5 {[%emt 0:05:11]} Bxc5 {[%emt 0:01:22]} 8. Qc2 {[%emt 0:02:54]} Nc6 {[%emt 0:14:11] D37: Queen's Gambit Declined: 5 Bf4} 9. Be2 {[%emt 0:06:22]} (9. a3 Qa5 10. O-O-O Be7 11. Rg1 a6 12. g4 dxc4 13. Bxc4 b5 14. g5 Nh5 15. Bd3 b4 16. Bxh7+ Kh8 17. Be4 bxc3 18. Bxc6 cxb2+ {½-½ (44) Mamedyarov,S (2764)-Nakamura,H (2743) Saint Louis 2019}) 9... h6 $146 {[%emt 0:07:04]} ({Predecessor:} 9... dxc4 10. Bxc4 Nb4 11. Qe2 Nbd5 12. Bxd5 Nxd5 13. Nxd5 Qxd5 14. O-O b6 15. Ne5 f6 16. e4 {½-½ (16) Cernousek,L (2427)-Chernyshov,K (2500) Marianske Lazne 2019}) 10. Rd1 {[%emt 0:04:25]} Qe7 {[%emt 0:04:44]} 11. cxd5 {[%emt 0:04:06]} Nb4 {[%emt 0:00:36]} 12. Qb3 {[%emt 0:01:37]} Nbxd5 {[%emt 0:01:43]} 13. Be5 {[%emt 0:12:38]} b6 {[%emt 0:06:29]} 14. O-O {[%emt 0:03:22]} Bb7 {[%emt 0:01:40]} 15. Nb5 {[%emt 0:06:44]} Rfd8 {[%emt 0:12:55]} 16. a3 {[%emt 0:01:27]} a6 {[%emt 0:04:06]} 17. Nbd4 {[%emt 0:01:30]} Bd6 {[%emt 0:07:19]} 18. Bxd6 {[%emt 0:05:34]} Qxd6 {[%emt 0:01:33]} 19. Nd2 {[%emt 0:00:40]} e5 {[%emt 0:09:27]} 20. Nc4 {[%emt 0:03:52]} Qe7 {[%emt 0:01:02]} 21. Nf5 {[%emt 0:07:26]} Qe6 {[%emt 0:00:05]} 22. Ng3 {[%emt 0:01:36]} Nd7 {[%emt 0:01:59]} 23. h3 {[%emt 0:01:52]} Nc5 {[%emt 0:00:21]} 24. Qc2 {[%emt 0:00:30]} Nf6 {[%emt 0:00:42] [#]} 25. b4 {[%emt 0:04:15]} (25. Qf5 $1 $16) 25... Nce4 {[%emt 0:01:14]} 26. Nxe4 {[%emt 0:00:14]} Bxe4 {[%emt 0:00:01]} (26... Nxe4 $11 {keeps the balance.} 27. Bf3 Rdc8 28. Bxe4 Rxc4 29. Qxc4 Qxc4 30. Bxb7 Rf8) 27. Qb2 {[%emt 0:00:28]} Re8 {[%emt 0:00:34]} 28. Rd6 {[%emt 0:00:23]} Qf5 {[%emt 0:01:15]} 29. Nxb6 {[%emt 0:01:11]} Rad8 {[%emt 0:00:48]} 30. Nc4 {[%emt 0:02:44]} Qg5 {[%emt 0:00:16]} 31. f3 {[%emt 0:01:25]} Rxd6 {[%emt 0:00:17]} 32. Nxd6 {[%emt 0:00:20]} Qxe3+ {[%emt 0:00:16]} (32... Rd8 {keeps fighting.}) 33. Kh2 {[%emt 0:02:00]} Rd8 {[%emt 0:00:20] [#]} 34. Nc4 $1 {[%emt 0:01:05] Double Attack} ({Worse is} 34. Nxe4 Nxe4 35. fxe4 Rd2 $11) 34... Rd2 $18 {[%emt 0:00:14]} (34... Qf4+ $142 35. g3 Qg5 36. fxe4 Nxe4) 35. Qxd2 {[%emt 0:00:16]} ({Weaker is} 35. Nxe3 Rxb2 36. Bxa6 Rb3 $16) 1-0

[Event "Bergen Grand Prix 2019"]
[Site "Bergen"]
[Date "2019.11.15"]
[Round "1.8"]
[White "Dale, Svein"]
[Black "Myagmarsuren, Evsuld"]
[Result "1/2-1/2"]
[ECO "B21"]
[WhiteElo "1787"]
[BlackElo "1471"]
[Annotator "NA RC"]
[PlyCount "66"]
[EventDate "2019.11.15"]
[EventType "swiss"]
[EventCountry "NOR"]
[SourceTitle "playchess.com"]
[Source "ChessBase"]
[SourceQuality "1"]
[TimeControl "40/5400:1800"]

1. e4 {[%emt 0:00:03]} c5 {[%emt 0:00:40]} 2. d4 {[%emt 0:00:03]} cxd4 {[%emt 0:00:51]} 3. c3 {[%emt 0:00:08]} dxc3 {[%emt 0:00:58]} 4. Nxc3 {[%emt 0:00:13]} e6 {[%emt 0:01:20]} 5. Nf3 {[%emt 0:00:19]} Nc6 {[%emt 0:02:05]} 6. Bc4 {[%emt 0:01:14]} Bc5 {[%emt 0:01:26]} 7. O-O {[%emt 0:02:28]} Nge7 {[%emt 0:02:43]} 8. Bg5 {[%emt 0:04:20]} O-O {[%emt 0:02:17]} 9. Rc1 {[%emt 0:03:59]} h6 {[%emt 0:05:25]} 10. Bh4 {[%emt 0:04:12]} d6 {[%emt 0:02:08]} 11. Qe2 {[%emt 0:05:58]} e5 {[%emt 0:05:45]} 12. Rfd1 {[%emt 0:02:40]} Bg4 {[%emt 0:01:11]} 13. Nd5 {[%emt 0:08:45]} g5 {[%emt 0:11:47]} 14. Nf6+ {[%emt 0:03:07]} Kg7 {[%emt 0:04:49]} 15. Nxg4 {[%emt 0:00:42]} gxh4 {[%emt 0:00:39]} 16. Nfxe5 {[%emt 0:03:36]} Nxe5 {[%emt 0:07:46]} 17. Nxe5 {[%emt 0:00:05]} Ng6 {[%emt 0:00:28]} 18. Nxg6 {[%emt 0:10:30]} fxg6 {[%emt 0:01:40]} 19. Rf1 {[%emt 0:01:11]} Qb6 {[%emt 0:01:29]} 20. Rc2 {[%emt 0:03:54]} Rf6 {[%emt 0:14:23]} 21. Kh1 {[%emt 0:01:14]} Raf8 {[%emt 0:02:14]} 22. f3 {[%emt 0:01:33]} g5 {[%emt 0:00:48]} 23. e5 {[%emt 0:02:14]} dxe5 {[%emt 0:01:57]} 24. Qxe5 {[%emt 0:01:05]} g4 {[%emt 0:03:52]} 25. fxg4 {[%emt 0:07:27]} Qd6 {[%emt 0:00:18]} 26. Qe1 {[%emt 0:03:25]} Bb4 {[%emt 0:05:56]} 27. Rxf6 {[%emt 0:07:11]} Rxf6 {[%emt 0:00:28]} 28. Qe2 {[%emt 0:02:54]} h3 {[%emt 0:01:30]} 29. Rc1 {[%emt 0:01:21]} hxg2+ {[%emt 0:00:33]} 30. Qxg2 {[%emt 0:00:23]} Qc6 {[%emt 0:00:26]} 31. Qxc6 {[%emt 0:01:49]} Rxc6 {[%emt 0:00:08]} 32. Rc2 {[%emt 0:00:36]} Kf6 {[%emt 0:00:14]} 33. Kg2 {[%emt 0:00:24]} Ke5 {[%emt 0:00:21]} 1/2-1/2

[Event "Bergen Grand Prix 2019"]
[Site "Bergen"]
[Date "2019.11.15"]
[Round "1.9"]
[White "Jacobsen, Hans-Henry"]
[Black "Jonsbu, Egil"]
[Result "1-0"]
[ECO "A37"]
[WhiteElo "1646"]
[BlackElo "1465"]
[Annotator "NA RC"]
[PlyCount "85"]
[EventDate "2019.11.15"]
[EventType "swiss"]
[EventCountry "NOR"]
[SourceTitle "playchess.com"]
[Source "ChessBase"]
[SourceQuality "1"]
[TimeControl "40/5400:1800"]

1. c4 {[%emt 0:00:03]} c5 {[%emt 0:00:17]} 2. Nc3 {[%emt 0:00:12]} Nc6 {[%emt 0:00:20]} 3. g3 {[%emt 0:00:06]} g6 {[%emt 0:00:31]} 4. Bg2 {[%emt 0:00:06]} Bg7 {[%emt 0:00:08]} 5. Nf3 {[%emt 0:00:10]} e6 {[%emt 0:01:43]} 6. Rb1 {[%emt 0:02:00]} Nge7 {[%emt 0:00:24]} 7. a3 {[%emt 0:00:49]} d5 {[%emt 0:01:59]} 8. cxd5 {[%emt 0:02:03]} exd5 {[%emt 0:00:45]} 9. O-O {[%emt 0:01:19]} O-O {[%emt 0:00:34]} 10. d3 {[%emt 0:00:24]} Re8 {[%emt 0:01:36]} 11. Bg5 {[%emt 0:00:45]} h6 {[%emt 0:02:59]} 12. Bd2 {[%emt 0:00:33]} b6 {[%emt 0:03:15]} 13. Qc1 {[%emt 0:02:09]} d4 {[%emt 0:02:05]} 14. Na4 {[%emt 0:00:12]} Bb7 {[%emt 0:05:11]} 15. Bxh6 {[%emt 0:00:17]} Qd7 {[%emt 0:01:27]} 16. Bxg7 {[%emt 0:00:22]} Kxg7 {[%emt 0:00:08]} 17. b4 {[%emt 0:01:25]} Nxb4 {[%emt 0:04:15]} 18. axb4 {[%emt 0:00:22]} Qxa4 {[%emt 0:00:34]} 19. bxc5 {[%emt 0:00:08]} Rac8 {[%emt 0:00:17]} 20. Ra1 {[%emt 0:00:39]} Qd7 {[%emt 0:01:01]} 21. Rxa7 {[%emt 0:00:31]} Rxc5 {[%emt 0:01:40]} 22. Qb2 {[%emt 0:00:28]} Qc8 {[%emt 0:07:37]} 23. Nxd4 {[%emt 0:10:22]} f6 {[%emt 0:05:34]} 24. Rxb7 {[%emt 0:01:13]} g5 {[%emt 0:12:37]} 25. Qxb6 {[%emt 0:00:32]} Re5 {[%emt 0:04:02]} 26. Rb1 {[%emt 0:09:08]} Qg4 {[%emt 0:05:45]} 27. h3 {[%emt 0:02:24]} Qh5 {[%emt 0:00:52]} 28. g4 {[%emt 0:03:25]} Qg6 {[%emt 0:03:55]} 29. Qd6 {[%emt 0:01:16]} Kf8 {[%emt 0:02:08]} 30. Ne6+ {[%emt 0:00:24]} Rxe6 {[%emt 0:03:10]} 31. Qxe6 {[%emt 0:00:14]} Nc8 {[%emt 0:01:26]} 32. Qc4 {[%emt 0:01:16]} Ne7 {[%emt 0:02:16]} 33. Rc7 {[%emt 0:01:55]} f5 {[%emt 0:02:57]} 34. Rbb7 {[%emt 0:01:44]} fxg4 {[%emt 0:01:19]} 35. Qxg4 {[%emt 0:01:03]} Qg7 {[%emt 0:01:45]} 36. Bc6 {[%emt 0:00:36]} Qa1+ {[%emt 0:00:34]} 37. Kg2 {[%emt 0:00:20]} Qe5 {[%emt 0:00:57]} 38. Bxe8 {[%emt 0:00:35]} Nd5 {[%emt 0:00:36]} 39. Qf3+ {[%emt 0:00:59]} Nf4+ {[%emt 0:00:11]} 40. Kh2 {[%emt 0:01:38]} Qxe8 {[%emt 0:00:03]} 41. e3 {[%emt 0:30:27]} Kg8 {[%emt 0:30:50]} 42. exf4 {[%emt 0:00:25]} gxf4 {[%emt 0:00:04]} 43. Rg7+ {[%emt 0:00:27]} 1-0

[Event "Bergen Grand Prix 2019"]
[Site "Bergen"]
[Date "2019.11.15"]
[Round "1.10"]
[White "Olsen, Geir M"]
[Black "Sorhus, Jostein"]
[Result "0-1"]
[ECO "D00"]
[WhiteElo "1704"]
[BlackElo "1630"]
[Annotator "NA RC"]
[PlyCount "86"]
[EventDate "2019.11.15"]
[EventType "swiss"]
[EventCountry "NOR"]
[SourceTitle "playchess.com"]
[Source "ChessBase"]
[SourceQuality "1"]
[TimeControl "40/5400:1800"]

1. d4 {[%emt 0:00:03]} Nf6 {[%emt 0:00:23]} 2. Nc3 {[%emt 0:00:14]} d5 {[%emt 0:00:38]} 3. Bf4 {[%emt 0:00:07]} g6 {[%emt 0:01:13]} 4. e3 {[%emt 0:00:10]} a6 {[%emt 0:01:58]} 5. Bd3 {[%emt 0:00:37]} Bg7 {[%emt 0:01:20]} 6. h4 {[%emt 0:00:21]} h5 {[%emt 0:03:02]} 7. Nf3 {[%emt 0:00:15]} Bg4 {[%emt 0:02:19]} 8. Qd2 {[%emt 0:00:22]} Bxf3 {[%emt 0:01:47]} 9. gxf3 {[%emt 0:00:14]} c5 {[%emt 0:06:47]} 10. dxc5 {[%emt 0:04:30]} Qa5 {[%emt 0:05:55]} 11. O-O-O {[%emt 0:01:57]} Qxc5 {[%emt 0:03:19]} 12. Kb1 {[%emt 0:00:52]} b5 {[%emt 0:07:49]} 13. Be5 {[%emt 0:07:32]} Nc6 {[%emt 0:04:53]} 14. f4 {[%emt 0:07:07]} Rd8 {[%emt 0:05:01]} 15. Qe1 {[%emt 0:08:24]} Nxe5 {[%emt 0:04:22]} 16. fxe5 {[%emt 0:00:21]} Ng4 {[%emt 0:00:35]} 17. f4 {[%emt 0:11:03]} Qxe3 {[%emt 0:05:20]} 18. Qd2 {[%emt 0:04:18]} Qxd2 {[%emt 0:00:44]} 19. Rxd2 {[%emt 0:00:17]} e6 {[%emt 0:01:21]} 20. Ne2 {[%emt 0:02:52]} O-O {[%emt 0:01:12]} 21. Nd4 {[%emt 0:00:55]} Rfe8 {[%emt 0:02:34]} 22. Rg1 {[%emt 0:01:10]} Bh6 {[%emt 0:04:14]} 23. Rf1 {[%emt 0:04:07]} Nxe5 {[%emt 0:01:01]} 24. Be2 {[%emt 0:01:56]} Ng4 {[%emt 0:02:49]} 25. Rd3 {[%emt 0:01:46]} Rc8 {[%emt 0:01:55]} 26. Ra3 {[%emt 0:05:16]} Bg7 {[%emt 0:03:35]} 27. Bxg4 {[%emt 0:06:08]} hxg4 {[%emt 0:01:28]} 28. Ne2 {[%emt 0:01:54]} Rc6 {[%emt 0:00:32]} 29. Ng3 {[%emt 0:02:06]} Bf8 {[%emt 0:03:02]} 30. Re3 {[%emt 0:01:27]} Rcc8 {[%emt 0:03:02]} 31. h5 {[%emt 0:01:13]} Kg7 {[%emt 0:00:33]} 32. Rh1 {[%emt 0:01:42]} Bd6 {[%emt 0:00:41]} 33. Ne2 {[%emt 0:02:05]} Rc4 {[%emt 0:00:33]} 34. hxg6 {[%emt 0:01:05]} fxg6 {[%emt 0:00:34]} 35. Nc3 {[%emt 0:02:26]} d4 {[%emt 0:00:12]} 36. Rd3 {[%emt 0:00:55]} Bxf4 {[%emt 0:00:48]} 37. Ne2 {[%emt 0:00:21]} e5 {[%emt 0:00:14]} 38. Rg1 {[%emt 0:00:19]} g3 {[%emt 0:00:09]} 39. b3 {[%emt 0:00:26]} Rcc8 {[%emt 0:00:23]} 40. Nxf4 {[%emt 0:00:08]} exf4 {[%emt 0:00:14]} 41. Rxd4 {[%emt 0:30:33]} g5 {[%emt 0:30:20]} 42. Rd7+ {[%emt 0:00:00]} Kf6 {[%emt 0:00:00]} 43. Rd5 {[%emt 0:00:00]} Re2 {[%emt 0:00:00]} 0-1

[Event "Bergen Grand Prix 2019"]
[Site "Bergen"]
[Date "2019.11.15"]
[Round "1.11"]
[White "Tenfjord Engelsen, Teodor"]
[Black "Stensen, Vidar"]
[Result "1-0"]
[ECO "D00"]
[WhiteElo "1349"]
[BlackElo "1097"]
[Annotator "NA RC"]
[PlyCount "131"]
[EventDate "2019.11.15"]
[EventType "swiss"]
[EventCountry "NOR"]
[SourceTitle "playchess.com"]
[Source "ChessBase"]
[SourceQuality "1"]
[TimeControl "40/5400:1800"]

1. d4 {[%emt 0:00:01]} d5 {[%emt 0:00:13]} 2. Nc3 {[%emt 0:00:03]} e6 {[%emt 0:01:01]} 3. Bf4 {[%emt 0:00:06]} Bd7 {[%emt 0:01:05]} 4. e3 {[%emt 0:00:13]} Bb4 {[%emt 0:00:50]} 5. Bd3 {[%emt 0:00:14]} Bxc3+ {[%emt 0:00:28]} 6. bxc3 {[%emt 0:00:07]} Nf6 {[%emt 0:01:10]} 7. Ne2 {[%emt 0:00:38]} Nc6 {[%emt 0:01:00]} 8. O-O {[%emt 0:00:53]} O-O {[%emt 0:02:01]} 9. c4 {[%emt 0:01:24]} Re8 {[%emt 0:00:50]} 10. Rb1 {[%emt 0:00:56]} b6 {[%emt 0:00:49]} 11. cxd5 {[%emt 0:00:32]} exd5 {[%emt 0:00:35]} 12. c4 {[%emt 0:00:14]} Be6 {[%emt 0:01:35]} 13. Qc2 {[%emt 0:00:35]} Qd7 {[%emt 0:03:20]} 14. Rfc1 {[%emt 0:02:28]} Rac8 {[%emt 0:04:14]} 15. f3 {[%emt 0:03:32]} dxc4 {[%emt 0:05:51]} 16. Bxc4 {[%emt 0:00:21]} Bxc4 {[%emt 0:04:00]} 17. Qxc4 {[%emt 0:00:16]} Na5 {[%emt 0:01:47]} 18. Qd3 {[%emt 0:03:09]} c6 {[%emt 0:02:02]} 19. Bg5 {[%emt 0:08:42]} Qe6 {[%emt 0:02:22]} 20. Rc2 {[%emt 0:02:25]} b5 {[%emt 0:00:47]} 21. Rbc1 {[%emt 0:08:30]} Nc4 {[%emt 0:01:18]} 22. e4 {[%emt 0:01:16]} h6 {[%emt 0:06:13]} 23. Bxf6 {[%emt 0:03:50]} Qxf6 {[%emt 0:00:52]} 24. a4 {[%emt 0:04:45]} a6 {[%emt 0:01:25]} 25. axb5 {[%emt 0:00:39]} cxb5 {[%emt 0:00:58]} 26. d5 {[%emt 0:01:50]} Rcd8 {[%emt 0:00:51]} 27. Ng3 {[%emt 0:02:15]} g6 {[%emt 0:01:21]} 28. Nf1 {[%emt 0:00:29]} Qe5 {[%emt 0:02:02]} 29. Nd2 {[%emt 0:00:51]} Rc8 {[%emt 0:04:12]} 30. Nxc4 {[%emt 0:01:47]} bxc4 {[%emt 0:02:12]} 31. Rxc4 {[%emt 0:00:24]} Rxc4 {[%emt 0:01:15]} 32. Qxc4 {[%emt 0:00:22]} a5 {[%emt 0:02:31]} 33. Qc3 {[%emt 0:02:41]} Qxc3 {[%emt 0:01:46]} 34. Rxc3 {[%emt 0:00:07]} a4 {[%emt 0:00:35]} 35. Kf2 {[%emt 0:00:43]} Kf8 {[%emt 0:01:20]} 36. Ke3 {[%emt 0:00:46]} Ra8 {[%emt 0:00:23]} 37. Ra3 {[%emt 0:00:10]} Ke7 {[%emt 0:00:43]} 38. Kd4 {[%emt 0:00:25]} f6 {[%emt 0:00:35]} 39. Ra2 {[%emt 0:02:14]} Kd6 {[%emt 0:01:40]} 40. f4 {[%emt 0:00:55]} h5 {[%emt 0:00:53]} 41. h3 {[%emt 0:31:33]} h4 {[%emt 0:30:27]} 42. e5+ {[%emt 0:00:15]} fxe5+ {[%emt 0:01:06]} 43. fxe5+ {[%emt 0:00:29]} Ke7 {[%emt 0:01:35]} 44. Ra3 {[%emt 0:00:36]} g5 {[%emt 0:00:40]} 45. Ke4 {[%emt 0:01:17]} Ra5 {[%emt 0:01:59]} 46. Kf5 {[%emt 0:01:57]} Rxd5 {[%emt 0:00:42]} 47. Rxa4 {[%emt 0:00:12]} Rd7 {[%emt 0:06:14]} 48. Rg4 {[%emt 0:00:24]} Rd2 {[%emt 0:01:59]} 49. Rxg5 {[%emt 0:00:28]} Rf2+ {[%emt 0:01:00]} 50. Kg6 {[%emt 0:00:05]} Ke6 {[%emt 0:02:01]} 51. Kh5 {[%emt 0:00:55]} Rf5 {[%emt 0:00:53]} 52. Rxf5 {[%emt 0:00:09]} Kxf5 {[%emt 0:00:24]} 53. Kxh4 {[%emt 0:00:10]} Kxe5 {[%emt 0:00:20]} 54. Kg5 {[%emt 0:00:09]} Ke6 {[%emt 0:00:39]} 55. h4 {[%emt 0:00:09]} Kf7 {[%emt 0:00:08]} 56. g4 {[%emt 0:00:09]} Kg7 {[%emt 0:00:17]} 57. h5 {[%emt 0:00:11]} Kh7 {[%emt 0:00:00]} 58. h6 {[%emt 0:00:00]} Kh8 {[%emt 0:00:00]} 59. Kh5 {[%emt 0:00:00]} Kh7 {[%emt 0:00:00]} 60. g5 {[%emt 0:00:00]} Kg8 {[%emt 0:00:00]} 61. g6 {[%emt 0:00:00]} Kh8 {[%emt 0:00:00]} 62. Kg5 {[%emt 0:00:00]} Kg8 {[%emt 0:00:00]} 63. Kf6 {[%emt 0:00:00]} Kh8 {[%emt 0:00:00]} 64. g7+ {[%emt 0:00:00]} Kg8 {[%emt 0:00:00]} 65. h7+ {[%emt 0:00:00]} Kxh7 {[%emt 0:00:00]} 66. Kf7 {[%emt 0:00:00]} 1-0